[Event "1st Kallai Gabor Memorial Blitz 2022"]
[Site "Budapest"]
[Date "2022.12.01"]
[Round "3.1"]
[White "Kozak, Adam"]
[Black "Borhy, Marcell"]
[Result "1-0"]
[ECO "A06"]
[WhiteElo "2538"]
[BlackElo "2407"]
[Annotator "TA"]
[PlyCount "73"]
[EventDate "2022.12.01"]
[EventType "blitz"]
[EventCountry "HUN"]
[SourceTitle "playchess.com"]
[Source "ChessBase"]
[SourceQuality "1"]
[TimeControl "300+3"]

{[%evp 9,73,2,9,7,8,8,9,5,4,2,8,4,7,0,15,15,23,-22,-16,-20,7,0,19,0,17,10,29,29,29,32,20,22,44,40,37,37,35,37,39,41,70,64,73,67,53,73,84,93,87,42,54,54,115,55,981,972,827,725,715,715,2266,2220,2167,2072,1850,1725]} 1. Nf3 {[%emt 0:00:13]} d5 {[%emt 0:00:06]} 2. e3 {[%emt 0:00:04]} Nf6 {[%emt 0:00:03]} 3. b3 {[%emt 0:00:01]} Bg4 {[%emt 0:00:23]} 4. Bb2 {[%emt 0:00:07]} e6 {[%emt 0:00:02]} 5. h3 {[%emt 0:00:03]} Bxf3 {[%emt 0:00:09]} 6. Qxf3 {[%emt 0:00:04] A06: Réti Opening: 1 Nf3 d5.} Be7 {[%emt 0:00:07]} 7. g3 {[%emt 0:00:09]} O-O {[%emt 0:00:04]} 8. Bg2 {[%emt 0:00:02] The position is equal.} c5 {[%emt 0:00:12]} 9. O-O {[%emt 0:00:31]} Nc6 {[%emt 0:00:02] [#]} 10. Qe2 $146 {[%emt 0:00:09]} ({Predecessor:} 10. d3 Nd7 11. Qe2 Bf6 12. c4 Bxb2 13. Qxb2 Nf6 14. cxd5 exd5 15. Nd2 Rc8 16. Nf3 {½-½ (46) Smyslov,V-Savon,V Petropolis 1973}) 10... Rc8 {[%emt 0:00:34]} 11. d3 {[%emt 0:00:57]} Re8 {[%emt 0:00:30]} 12. c4 {[%emt 0:01:08]} d4 {[%emt 0:00:15]} 13. e4 {[%emt 0:01:13]} e5 {[%emt 0:00:10]} 14. Nd2 {[%emt 0:00:05]} g6 {[%emt 0:00:12]} 15. Nf3 {[%emt 0:00:19]} Nh5 {[%emt 0:00:15]} 16. Bc1 {[%emt 0:00:06]} Bf6 {[%emt 0:00:20]} 17. Bd2 {[%emt 0:00:02]} Bg7 {[%emt 0:00:04]} 18. Nh2 {[%emt 0:00:07]} Qd6 {[%emt 0:00:47]} 19. Bf3 {[%emt 0:00:03]} Nf6 {[%emt 0:00:01]} 20. h4 {[%emt 0:00:02]} h5 {[%emt 0:00:15]} 21. Bg2 {[%emt 0:00:12]} a6 {[%emt 0:00:05]} 22. Bh3 {[%emt 0:00:02]} Rc7 {[%emt 0:00:09]} 23. Nf3 {[%emt 0:00:02]} b5 {[%emt 0:00:20]} 24. Rac1 {[%emt 0:00:01][%cal Ba1c1,Bc1c2,Bc2b2][%mdl 32]} b4 {[%emt 0:00:04]} 25. Ng5 {[%emt 0:00:07]} a5 {[%emt 0:00:19][%cal Oa5a4]} 26. f4 {[%emt 0:00:04]} a4 {[%emt 0:00:05]} 27. f5 {[%emt 0:00:05]} axb3 {[%emt 0:00:06]} 28. axb3 {[%emt 0:00:01]} Ra7 {[%emt 0:00:01]} 29. Rc2 {[%emt 0:00:09]} (29. Ra1 {is interesting.} Ra5 30. fxg6 fxg6 31. Qf3) 29... Ra3 {[%emt 0:00:09]} 30. Rb2 {[%emt 0:00:01]} Na5 {[%emt 0:00:11] [#]} (30... Nd8 $14) 31. Qd1 {[%emt 0:00:01]} ({Resist} 31. fxg6 fxg6 32. Qd1 Nc6 $14) ({White should try} 31. Nxf7 $1 $16 {[%mdl 512]} Kxf7 32. fxg6+ Kxg6 33. Bg5) 31... Nh7 $2 {[%emt 0:00:06][%mdl 8192] [#] Black cannot hold the game after this.} (31... Nc6 $14) 32. Nxf7 $1 $18 {[%emt 0:00:07][%mdl 512] White is clearly winning.} Qa6 {[%emt 0:00:17]} (32... Qc6 33. fxg6) 33. Ng5 {[%emt 0:00:09]} Nxg5 {[%emt 0:00:08]} 34. hxg5 {[%emt 0:00:03][%cal Bh4g5,Bg5g6][%mdl 32] aiming for fxg6.} Ra8 {[%emt 0:00:08]} 35. fxg6 {[%emt 0:00:03]} Qxg6 {[%emt 0:00:02]} 36. Bf5 {[%emt 0:00:01]} Qe8 {[%emt 0:00:02]} 37. g6 {[%emt 0:00:01] Weighted Error Value: White=0.07 (flawless) /Black=0.12 (very precise)} 1-0

[Event "1st Kallai Gabor Memorial Blitz 2022"]
[Site "Budapest"]
[Date "2022.12.01"]
[Round "3.2"]
[White "Bjerre, Jonas Buhl"]
[Black "Berkes, Ferenc"]
[Result "1-0"]
[ECO "D11"]
[WhiteElo "2622"]
[BlackElo "2643"]
[Annotator "TA"]
[PlyCount "77"]
[EventDate "2022.12.01"]
[EventType "blitz"]
[EventCountry "HUN"]
[SourceTitle "playchess.com"]
[Source "ChessBase"]
[SourceQuality "1"]
[TimeControl "300+3"]

{[%evp 9,77,19,33,21,39,27,52,58,37,35,31,29,35,31,40,-17,-24,-22,-25,-35,-33,-42,-58,-156,-162,-147,-165,-167,-160,-245,-148,-150,-148,-158,-158,-460,-260,-541,-537,-563,-542,-479,-361,-389,-222,-208,-183,-164,0,0,0,-337,-343,-311,-6,-14,-18,-25,-22,-127,-127,-208,-212,-202,-77,-57,-36,-102,844,668]} 1. Nf3 {[%emt 0:00:04]} d5 {[%emt 0:00:04]} 2. d4 {[%emt 0:00:03]} c6 {[%emt 0:00:01]} 3. c4 {[%emt 0:00:02]} Nf6 {[%emt 0:00:01]} 4. e3 {[%emt 0:00:01]} a6 {[%emt 0:00:04]} 5. Nbd2 {[%emt 0:00:02]} Bf5 {[%emt 0:00:19]} 6. Nh4 {[%emt 0:00:01] D11: Slav Defence: 3 Nf3 sidelines and 3...Nf6 4 e3 Bg4.} Bg4 {[%emt 0:00:25]} 7. Qc2 g6 $5 {[%emt 0:00:06][%mdl 4] A promising side line.} 8. h3 {[%emt 0:00:09] White is slightly better.} Be6 {[%emt 0:00:02] [#]} 9. Be2 $146 {[%emt 0:00:02]} ({Predecessor:} 9. c5 Bg7 10. Bd3 O-O 11. O-O a5 12. Nb1 Na6 13. a3 Ne4 14. Nc3 f5 15. Nf3 {1-0 (49) Sargissian,G (2682)-Kobalia,M (2614) Chess.com INT 2020}) 9... Bg7 {[%emt 0:00:01][%cal Oc6c5]} 10. O-O {[%emt 0:00:05]} O-O {[%emt 0:00:02]} 11. b3 {[%emt 0:00:04]} c5 12. cxd5 {[%emt 0:01:07]} (12. dxc5 $14 Ne4 13. Bb2) 12... Nxd5 $11 {[%emt 0:00:27]} 13. Qxc5 {[%emt 0:00:15]} Nc6 $1 {[%emt 0:00:34][%cal Od5e3,Bb8c6,Bc6b4,Bb4c2][%mdl 32]} 14. Bb2 {[%emt 0:01:02]} Rc8 $1 {[%emt 0:00:13][%cal Oc6d4]} 15. Qa3 {[%emt 0:00:01]} Ncb4 {[%emt 0:00:10] Hoping for ...Nc2.} 16. Rac1 {[%emt 0:00:02]} (16. Bd1 $1 $15) 16... Nc2 $17 {[%emt 0:00:04]} 17. Rxc2 {[%emt 0:00:25]} ({But not} 17. Qa4 $2 Bd7 $19) 17... Rxc2 {[%emt 0:00:01]} 18. Nhf3 {[%emt 0:00:02] [#]} b5 $1 $36 {[%emt 0:01:44][%mdl 2048] And now ...b4 would win. Black is on the roll.} 19. Ba1 {[%emt 0:00:22]} (19. Rb1 $17 {was worth a try.}) 19... Qb6 {[%emt 0:00:02]} 20. Bd3 {[%emt 0:00:12]} Rc7 {[%emt 0:00:02]} 21. Ne4 {[%emt 0:00:11]} Bf5 22. Ne5 $2 {[%emt 0:00:57]} (22. Ne1 $17) 22... Rfc8 {[%emt 0:00:15]} (22... Bxe5 $142 23. dxe5 {[#]} Nxe3 $1 {[%mdl 512]}) 23. Nc5 $2 {[%emt 0:00:02]} (23. Nf3) 23... Bxe5 $19 {[%emt 0:00:06]} 24. e4 {[%emt 0:00:08]} Nf4 {[%emt 0:00:32]} (24... b4 $2 25. Qxa6 Qxa6 26. Bxa6 $19) 25. exf5 {[%emt 0:00:03]} Nxd3 {[%emt 0:00:05]} 26. Nxd3 {[%emt 0:00:11]} Bd6 {[%emt 0:00:04]} (26... Bxd4 $142 27. fxg6 hxg6) 27. b4 {[%emt 0:00:21]} gxf5 {[%emt 0:00:04][%cal Oa6a5]} 28. Nc5 {[%emt 0:00:01]} Kh8 $2 {[%emt 0:00:27]} (28... Qc6 $19 {Strongly threatening ...Qd5.} 29. Re1 Qd5) 29. d5+ $1 $11 f6 {[%cal Rd6c5]} 30. Qd3 $2 {[%emt 0:00:15][%mdl 8192]} (30. Bd4 $11 {and White has nothing to worry.}) 30... Bxc5 $19 {[%emt 0:00:06]} 31. bxc5 {[%emt 0:00:04]} Rxc5 {[%emt 0:00:07]} (31... Qxc5 $19 32. Qxf5 Qd6) 32. Bd4 $11 {[%emt 0:00:11] [#]} Qd6 $1 {[%emt 0:00:10]} 33. Bxc5 {[%emt 0:00:02]} Rxc5 {[%emt 0:00:01]} 34. Qxf5 (34. Rd1 $1 $11) 34... Qxd5 {[%emt 0:00:07] KQR-KQR} 35. Qg4 {[%emt 0:00:04]} (35. Qb1 $17) 35... Qxa2 $19 36. Rd1 {[%emt 0:00:05] Threatening mate with Rd8+.} Qg8 {[%emt 0:00:14] Inhibits Rd8.} (36... Rg5 $19 37. Qe4 Re5) 37. Qd7 $17 {[%emt 0:00:02]} Qf7 {[%emt 0:00:07]} 38. Qa7 {[%emt 0:00:10]} ({White should play} 38. Rd3 $15) 38... Rd5 $2 {[%emt 0:00:04][%mdl 8192]} (38... Re5 $17 39. Qxa6 Qc4) 39. Qa8+ {[%emt 0:00:02] Weighted Error Value: White=0.54/Black=0.53} 1-0

[Event "1st Kallai Gabor Memorial Blitz 2022"]
[Site "Budapest"]
[Date "2022.12.01"]
[Round "3.3"]
[White "Motylev, Alexander"]
[Black "Ruck, Robert"]
[Result "1-0"]
[ECO "B12"]
[WhiteElo "2628"]
[BlackElo "2537"]
[Annotator "TA"]
[PlyCount "79"]
[EventDate "2022.12.01"]
[EventType "blitz"]
[EventCountry "HUN"]
[SourceTitle "playchess.com"]
[Source "ChessBase"]
[SourceQuality "1"]
[TimeControl "300+3"]

{[%evp 9,79,9,14,10,20,16,18,0,16,2,2,0,4,0,4,0,0,0,0,0,0,0,0,0,12,10,13,12,10,10,10,10,41,30,35,4,35,35,36,39,50,0,9,0,0,0,13,0,0,0,0,0,0,-7,0,0,0,0,0,0,0,6,12,10,390,389,358,304,398,368,373,379]} 1. e4 {[%emt 0:00:05]} c6 {[%emt 0:00:04]} 2. d4 {[%emt 0:00:01]} d5 {[%emt 0:00:01]} 3. e5 {[%emt 0:00:01]} Bf5 {[%emt 0:00:01]} 4. h4 {[%emt 0:00:10]} h5 {[%emt 0:00:03]} 5. Bd3 {[%emt 0:00:02]} Bxd3 {[%emt 0:00:01]} 6. Qxd3 {[%emt 0:00:02][%cal Oe5e6] B12: Caro-Kann: Advance Variation.} Qa5+ {[%emt 0:00:01]} 7. Nd2 {[%emt 0:00:03][%cal Oe5e6] e6! is the strong threat.} (7. c3 $5 {[%cal Re5e6]}) 7... e6 {[%emt 0:00:04]} 8. Ngf3 {[%emt 0:00:02] The position is equal.} Ne7 {[%emt 0:00:09]} 9. O-O {[%emt 0:00:05][%cal Ob2b4]} Nf5 {[%emt 0:00:02]} 10. Nb3 {[%emt 0:00:02]} Qa6 {[%emt 0:00:07]} 11. Qd1 {[%emt 0:00:01]} Be7 {[%emt 0:00:15]} 12. g3 {[%emt 0:00:01]} Nd7 {[%emt 0:00:05]} 13. Bg5 {[%emt 0:00:02]} Bxg5 {[%emt 0:00:13]} 14. Nxg5 {[%emt 0:00:02]} Rc8 {[%emt 0:00:30]} 15. Re1 {[%emt 0:00:02] [#]} g6 $146 {[%emt 0:00:50]} ({Predecessor:} 15... Qb6 16. Rc1 g6 17. c4 dxc4 18. Rxc4 O-O 19. Ne4 Qd8 20. Ra4 Ra8 21. Nbc5 Nb6 {1-0 (40) Stefansson,H (2534)-Mis,M (2388) Przeworsk 2022}) 16. c3 {[%emt 0:00:05]} Kf8 {[%emt 0:00:11]} 17. Qd2 {[%emt 0:00:05]} Kg7 {[%emt 0:00:04]} 18. Kg2 {[%emt 0:00:18]} b6 {[%emt 0:00:07]} 19. Nc1 {[%emt 0:00:10][%cal Bb3c1,Bc1e2,Be2f4][%mdl 32]} Nf8 {[%emt 0:00:23]} 20. Ne2 {[%emt 0:00:08]} Nh7 {[%emt 0:00:01]} 21. Nf3 {[%emt 0:00:24]} c5 {[%emt 0:00:30]} 22. Nf4 {[%emt 0:00:08]} cxd4 {[%emt 0:00:06]} 23. Nxd4 Nxd4 24. cxd4 {[%emt 0:00:08]} Rc6 {[%emt 0:00:11]} 25. a4 {[%emt 0:01:28]} Rhc8 {[%emt 0:00:10][%cal Bh8c8,Bc8c7,Bc7b7][%mdl 32]} 26. b3 {[%emt 0:00:03]} Rc2 {[%emt 0:00:28]} 27. Qb4 {[%emt 0:00:01]} R8c7 {[%emt 0:00:34]} 28. Re3 {[%emt 0:00:04]} Qa5 {[%emt 0:00:15]} 29. Qxa5 {[%emt 0:01:10]} bxa5 {[%emt 0:00:01]} 30. Re2 {[%emt 0:00:18]} R2c3 {[%emt 0:00:20]} 31. Rb1 {[%emt 0:00:03]} Rb7 {[%emt 0:00:07]} 32. Re3 {[%emt 0:00:04]} Rc2 {[%emt 0:00:03]} 33. Nd3 {[%emt 0:00:12]} Rd2 {[%emt 0:00:08]} 34. Kf1 {[%emt 0:00:13]} Nf8 {[%emt 0:00:07]} 35. Ke1 {[%emt 0:00:01]} Ra2 {[%emt 0:00:11]} 36. Re2 {[%emt 0:00:09]} Ra3 {[%emt 0:00:17][%mdl 8192] [#] Black cannot hold the game after this.} (36... Rxe2+ $1 $11 {and Black is okay.} 37. Kxe2 Nd7) 37. Nc5 $18 {[%emt 0:00:07]} Rb4 {[%emt 0:00:03]} 38. Rd2 {[%emt 0:00:04]} f6 {[%emt 0:00:07]} 39. f4 {[%emt 0:00:05]} Kf7 {[%emt 0:00:03] [#]} 40. Kd1 $1 {[%emt 0:00:01] Weighted Error Value: White=0.07 (flawless) /Black=0.24 (precise)} 1-0

[Event "1st Kallai Gabor Memorial Blitz 2022"]
[Site "Budapest"]
[Date "2022.12.01"]
[Round "3.4"]
[White "Beliavsky, Alexander G"]
[Black "Horvath, Csaba"]
[Result "0-1"]
[ECO "A43"]
[WhiteElo "2487"]
[BlackElo "2502"]
[Annotator "TA"]
[PlyCount "90"]
[EventDate "2022.12.01"]
[EventType "blitz"]
[EventCountry "HUN"]
[SourceTitle "playchess.com"]
[Source "ChessBase"]
[SourceQuality "1"]
[TimeControl "300+3"]

{[%evp 15,90,-3,0,0,8,0,13,4,20,11,15,0,7,-11,12,-11,-15,-42,-31,-39,-35,-57,-46,-85,-90,-278,-283,-281,-278,-271,-289,-293,-303,-282,-294,-342,-357,-326,-339,-454,-428,-466,-466,-466,-466,-466,-466,-458,-433,-430,-425,-522,-490,-493,-466,-1082,-1082,-1067,-830,-758,-791,-749,-613,-788,-614,-917,-947,-944,-941,-934,-932,-1876,-857,-1244,-1227,-1046,-1003]} 1. d4 {[%emt 0:00:05]} Nf6 {[%emt 0:00:04]} 2. Nf3 {[%emt 0:00:01]} c5 {[%emt 0:00:02]} 3. d5 {[%emt 0:00:01]} b5 {[%emt 0:00:01]} 4. a4 {[%emt 0:00:07]} b4 {[%emt 0:00:02]} 5. c4 {[%emt 0:00:17]} g6 {[%emt 0:00:04]} 6. Nbd2 {[%emt 0:00:08]} Bg7 {[%emt 0:00:01]} 7. e4 {[%emt 0:00:00]} d6 {[%emt 0:00:01]} 8. Bd3 {[%emt 0:00:07]} O-O 9. O-O {[%emt 0:00:00] A57: Benko/Volga Gambit.} a5 {[%emt 0:00:10]} 10. h3 {[%emt 0:00:02] [#]} e5 $146 {[%emt 0:00:02]} ({Predecessor:} 10... e6 11. Re1 Na6 12. Qb3 Nc7 13. Nf1 Nd7 14. Bg5 Qe8 15. e5 dxe5 16. d6 f5 17. dxc7 {1-0 (30) Sanchez Zambrano,V (1760)-Orbezo Rosales,X (1804) Lima 2012}) 11. Re1 {[%emt 0:00:06] The position is equal.} Nh5 {[%emt 0:00:03]} 12. Nf1 {[%emt 0:00:38]} Ra7 {[%emt 0:00:07]} 13. Ng3 {[%emt 0:00:20]} Nf4 {[%emt 0:00:24]} 14. Bf1 {[%emt 0:00:02]} Re7 {[%emt 0:00:09]} 15. Ne2 {[%emt 0:00:01]} Nxe2+ {[%emt 0:00:13]} 16. Qxe2 {[%emt 0:00:05]} Nd7 {[%emt 0:00:05][%cal Bb8d7,Bd7f6,Bf6e4,Be4d2][%mdl 32]} 17. Bg5 {[%emt 0:00:14]} f6 {[%emt 0:00:03]} 18. Bd2 {[%emt 0:00:04]} f5 {[%emt 0:00:14]} 19. Ng5 {[%emt 0:00:05]} Nf6 {[%emt 0:00:03]} 20. g3 $2 {[%emt 0:00:59] Now White is beyond hope.} (20. exf5 $17 {might work better.} gxf5 21. g3) 20... h6 $19 {[%emt 0:00:06]} 21. Ne6 {[%emt 0:00:02]} Bxe6 {[%emt 0:00:02]} 22. dxe6 {[%emt 0:00:00]} Nxe4 {[%emt 0:00:05]} (22... fxe4 23. h4 $15) 23. Bg2 {[%emt 0:00:01] [#]} Nxd2 {[%emt 0:00:13]} (23... Rxe6 24. Bxe4 fxe4 25. Qxe4 $17) 24. Qxd2 {[%emt 0:00:01]} e4 {[%emt 0:00:01]} (24... Rxe6 25. Bd5 Rfe8 26. Bxe6+ Rxe6 27. Qd5 $15) 25. f3 {[%emt 0:00:00]} Bd4+ {[%emt 0:00:05]} (25... Rxe6 $2 26. fxe4 Bd4+ 27. Kh1 fxe4 28. Qxh6 $19) 26. Kh1 {[%emt 0:00:01]} e3 {[%emt 0:00:00]} (26... Rxe6 $2 {too greedy.} 27. fxe4 fxe4 28. Qxh6 $19) 27. Rxe3 {[%emt 0:00:02]} Bxe3 {Black is clearly winning.} 28. Qxe3 {[%emt 0:00:01]} f4 {[%emt 0:00:08]} 29. gxf4 {[%emt 0:00:21]} Rf6 {[%emt 0:01:44][%cal Bf8f6,Bf6g6,Bg6g3,Bg3d3][%mdl 32]} 30. f5 {[%emt 0:00:01]} gxf5 31. f4 Kh7 {[%emt 0:00:03]} (31... Rfxe6 32. Bd5 Qe8 33. Re1 $11) 32. Bd5 {[%emt 0:00:00]} Rg6 {[%emt 0:00:09]} 33. Qd3 {[%emt 0:00:23]} Qf8 {[%emt 0:00:02]} 34. Re1 {[%emt 0:00:16]} Qf6 {[%emt 0:00:02]} 35. Rf1 {[%emt 0:00:32]} (35. Re2 $142) 35... Reg7 {[%emt 0:00:04] [#] ...Rg3 is the strong threat.} 36. Qe2 {[%emt 0:00:30]} Rg3 {[%emt 0:00:07]} 37. Qh5 {[%emt 0:00:09]} Qg6 {[%emt 0:00:18]} ({Inferior is} 37... Qxb2 38. Qxf5+ Kh8 39. Qf8+ Kh7 40. Qf5+ (40. Qxd6 $2 Rxh3#) (40. Be4+ R7g6 $11) 40... R7g6 41. e7 $11) 38. Qxg6+ Kxg6 {[%emt 0:00:01][%cal Bh7g6,Bg6f6,Bf6e6][%mdl 4128] Endgame KRR-KRB} 39. Kh2 {[%emt 0:00:09]} Kf6 {[%emt 0:00:02]} 40. Re1 {[%emt 0:00:18][%cal Oe6e7] Threatens to win with e7!} Rd3 {[%emt 0:00:14] Inhibits e7. Strongly threatening ...Rd2+.} 41. Re2 {[%emt 0:00:05] Against Rd2} Rd4 {[%emt 0:00:03]} 42. Rf2 {[%emt 0:00:05]} b3 {[%emt 0:00:12]} 43. Bg2 {[%emt 0:00:24]} Kxe6 {[%emt 0:00:06]} (43... Rxc4 $142 44. e7 Rxe7) 44. Re2+ {[%emt 0:00:01]} Kd7 {[%emt 0:00:04]} 45. Bd5 {[%emt 0:00:02]} Rxf4 {[%emt 0:00:04] Weighted Error Value: White=0.75/Black=0.33} 0-1

[Event "1st Kallai Gabor Memorial Blitz 2022"]
[Site "Budapest"]
[Date "2022.12.01"]
[Round "3.5"]
[White "Gaal, Zsoka"]
[Black "Troff, Kayden"]
[Result "1-0"]
[ECO "A05"]
[WhiteElo "2286"]
[BlackElo "2483"]
[Annotator "TA"]
[PlyCount "79"]
[EventDate "2022.12.01"]
[EventType "blitz"]
[EventCountry "HUN"]
[SourceTitle "playchess.com"]
[Source "ChessBase"]
[SourceQuality "1"]
[TimeControl "300+3"]

{[%evp 9,79,18,15,16,19,12,25,0,0,0,12,23,32,23,128,129,114,106,144,143,133,130,135,91,262,245,307,258,286,266,329,323,585,551,998,1003,926,896,794,659,2253,2185,2398,2256,2019,2032,29970,29973,29968,29937,29988,29989,29992,29993,29993,29994,29997,29998,29998,29997,29997,29998,29998,29998,29998,29995,29995,29995,29995,29996,29996,29997]} 1. Nf3 {[%emt 0:00:04]} Nf6 {[%emt 0:00:04]} 2. c4 {[%emt 0:00:01]} g6 {[%emt 0:00:01]} 3. Nc3 {[%emt 0:00:01]} d5 {[%emt 0:00:12]} 4. cxd5 Nxd5 {[%emt 0:00:02]} 5. h4 {[%emt 0:00:02]} Bg7 {[%emt 0:00:21]} 6. e4 {[%emt 0:00:46] A16: English Opening: 1...Nf6 with ...d5.} Nxc3 {[%emt 0:00:03]} 7. bxc3 {[%emt 0:00:03]} (7. dxc3 {simplifies} Qxd1+ 8. Kxd1 Nd7 9. Nd4) 7... c5 {[%emt 0:00:02]} 8. Rb1 {[%emt 0:00:27] White has an edge.} Nc6 {[%emt 0:00:10]} 9. h5 {[%emt 0:00:06] [#]} a6 $146 {[%emt 0:00:59]} ({Predecessor:} 9... O-O 10. Bc4 Na5 11. Be2 Be6 12. Qa4 b6 13. e5 Qd5 14. Qh4 Bf5 15. hxg6 Bxg6 {0-1 (59) Elgersma,O (2282)-Shahade,G (2476) Chess.com INT 2021}) 10. a4 {[%emt 0:00:13]} Rb8 {[%emt 0:00:13]} 11. Bc4 {[%emt 0:00:31]} Ne5 {[%emt 0:01:00]} (11... O-O $11 {remains equal.}) 12. Nxe5 $16 {[%emt 0:00:16]} Bxe5 {[%emt 0:00:02]} 13. Qf3 {[%emt 0:00:20]} e6 {[%emt 0:00:19]} 14. hxg6 {[%emt 0:00:11]} hxg6 {[%emt 0:00:03]} 15. Rxh8+ {[%emt 0:00:02]} Bxh8 16. Bxa6 $40 {[%emt 0:00:05][%mdl 128] White wants a kill. White is more active.} Kf8 $2 {[%emt 0:00:27] Loses the game.} (16... Be5 $16 17. Bb5+ Bd7) 17. Ba3 $18 {[%emt 0:00:10]} Qc7 {[%emt 0:00:18] [#]} 18. Rb5 $1 {[%emt 0:00:39]} b6 {[%emt 0:00:29]} (18... bxa6 $2 19. Rxc5 $18) (18... Qh2 19. Rxc5) 19. Bxc8 {[%emt 0:00:02]} Rxc8 {[%emt 0:00:04]} 20. a5 $1 {[%cal Ba4a5,Ba5b6][%mdl 32]} Kg8 $2 {[%emt 0:00:09]} (20... Qa7 {keeps fighting.} 21. Rxb6 Kg8) 21. axb6 {[%emt 0:00:05]} ({Less strong is} 21. Rxb6 Ra8 $16) 21... Qc6 {[%emt 0:00:20]} 22. Rxc5 {[%emt 0:00:13]} Qb7 {[%emt 0:00:01]} 23. Rxc8+ {[%emt 0:00:03]} Qxc8 {[%mdl 4096] Endgame KQB-KQB} 24. Qe3 {[%emt 0:00:10] [#] Black must now prevent Qc5.} Be5 {[%emt 0:00:13]} 25. Qc5 {[%emt 0:00:08]} Qb8 {[%emt 0:00:00]} 26. d4 {[%emt 0:00:18]} Bf4 {[%emt 0:00:10]} 27. Qc6 {[%emt 0:00:03]} Qd8 {[%emt 0:00:10]} 28. b7 {[%emt 0:00:06] White mates.} Kg7 {[%emt 0:00:18]} 29. e5 {[%emt 0:00:22]} Bg5 {[%emt 0:00:11]} 30. Qd6 {[%emt 0:00:18]} Qa5 {[%emt 0:00:02]} 31. Qf8+ {[%emt 0:00:19]} ({Worse is} 31. b8=R Qxc3+ 32. Kf1 Qd3+ 33. Kg1 Qd1+ 34. Kh2 Qh5+ 35. Kg1 Qd1+ 36. Kh2 Qh5+ 37. Kg1 Qd1+ $11) 31... Kh7 {[%emt 0:00:01]} 32. Qxf7+ {[%emt 0:00:01]} ({Not} 32. b8=R Qxc3+ 33. Kf1 Qd3+ 34. Kg1 Qd1+ 35. Kh2 Qh5+ 36. Kg1 Qd1+ 37. Kh2 Qh5+ 38. Kg1 Qd1+ $11) 32... Kh6 {[%emt 0:00:02]} 33. Bf8+ {[%emt 0:00:05]} Kh5 {[%emt 0:00:02]} 34. Qh7+ {[%emt 0:00:04]} Bh6 {[%emt 0:00:04]} 35. Qxh6+ {[%emt 0:00:02]} Kg4 {[%emt 0:00:01]} 36. Qh3+ {[%emt 0:00:05]} Kf4 {[%emt 0:00:01]} 37. Qf3+ {[%emt 0:00:05]} Kg5 {[%emt 0:00:01]} 38. Be7+ {[%emt 0:00:15]} Kh6 {[%emt 0:00:01]} 39. Qh3+ {[%emt 0:00:06]} Kg7 {[%emt 0:00:00]} 40. Bf6+ {[%emt 0:00:01] Weighted Error Value: White=0.18 (very precise) /Black=0.88} 1-0